bitfinex/quotes_SOLUSD_20250728
["timestamp","ask_amount","ask_price","bid_price","bid_amount"]
[1753737084826,14.24621232,184.85,184.84,42.29566021]
[1753737086247,14.24621232,184.85,184.84,3.87566021]
[1753737086753,14.24980621,184.85,184.84,3.87566021]
[1753737087538,8.84001449,184.85,184.84,3.87566021]
[1753737087945,8.84001449,184.85,184.84,20.66034418]
[1753737088249,8.17001449,184.85,184.84,20.66034418]
[1753737088752,8.17001449,184.85,184.84,59.04034418]
[1753737091125,8.17001449,184.85,184.84,59.10034418]
[1753737091948,4.18265202,184.85,184.84,59.10034418]
[1753737092153,4.86265202,184.85,184.84,59.10034418]
[1753737092445,14.26589184,184.85,184.84,42.31566021]
[1753737093524,14.26589184,184.85,184.84,3.93566021]
[1753737094960,8.85610012,184.85,184.84,3.93566021]
[1753737095254,4.1934481,184.85,184.84,59.12034418]
[1753737095443,4.1934481,184.85,184.84,59.66135261]
[1753737095651,0.2,184.85,184.84,59.66135261]
[1753737095850,0.2,184.85,184.84,60.07135261]
[1753737096037,0.2,184.85,184.84,59.66135261]
[1753737097334,0.88,184.85,184.84,59.12034418]
[1753737098941,0.2,184.85,184.84,59.12034418]
[1753737099957,0.2,184.85,184.84,59.66135261]
[1753737100831,0.2,184.85,184.84,59.12034418]
[1753737101035,0.2,184.85,184.84,59.79466732]
[1753737101357,0.2,184.85,184.84,60.33567575]
[1753737102747,0.2,184.85,184.84,65.33576014]
[1753737103049,0.2,184.85,184.84,67.27896014]
[1753737109253,0.2,184.85,184.84,61.45887575]
[1753737109767,0.88,184.85,184.84,21.26135261]
[1753737110075,8.92666036,184.85,184.84,42.23566021]
[1753737110254,8.92666036,184.85,184.84,59.02034418]
[1753737110650,4.22312595,184.85,184.84,59.02034418]
[1753737110845,0.2,184.85,184.84,59.02034418]
[1753737111242,4.90850838,184.85,184.84,59.02034418]
[1753737111441,4.22850838,184.85,184.84,59.02034418]
[1753737111671,0.2,184.85,184.84,59.02034418]
[1753737112263,4.2310177,184.85,184.84,59.02034418]
[1753737112646,4.9110177,184.85,184.84,59.02034418]
[1753737113264,4.2310177,184.85,184.84,64.57259014]
[1753737113483,0.2,184.85,184.84,65.12475171]
[1753737113645,0.2,184.85,184.84,59.84567575]
[1753737113847,0.2,184.85,184.84,59.56135261]
[1753737114155,4.91379385,184.85,184.84,59.56135261]
[1753737114469,0.88,184.85,184.84,59.56135261]
[1753737114855,4.91736553,184.85,184.84,59.56135261]
[1753737115243,4.23736553,184.85,184.84,59.56135261]
[1753737116672,4.91736553,184.85,184.84,59.00034418]
[1753737118172,4.23736553,184.85,184.84,59.00034418]
[1753737118371,4.23736553,184.85,184.84,59.54135261]
[1753737119278,0.2,184.85,184.84,59.54135261]
[1753737120480,0.88,184.85,184.84,59.54135261]
[1753737121264,0.88,184.85,184.84,21.26135261]
[1753737121556,0.88,184.85,184.84,59.54135261]
[1753737121865,0.88,184.85,184.84,59.00034418]
[1753737122971,0.2,184.85,184.84,64.41042857]
[1753737123173,0.2,184.85,184.84,59.00034418]
[1753737123483,0.2,184.85,184.84,59.54135261]
[1753737124389,0.2,184.85,184.84,59.00034418]
[1753737124876,0.2,184.85,184.84,75.10475171]
[1753737125065,0.2,184.85,184.84,81.41465171]
[1753737125786,0.2,184.85,184.84,32.72465171]
[1753737126081,0.2,184.85,184.84,64.41042857]
[1753737126082,0.88,184.85,184.84,64.41042857]
[1753737126587,0.2,184.85,184.84,64.41042857]
[1753737126988,0.2,184.85,184.84,59.00034418]
[1753737127883,0.2,184.85,184.84,64.41042857]
[1753737129791,0.2,184.85,184.84,64.69475171]
[1753737131662,0.2,184.85,184.84,65.10475171]
[1753737135376,0.2,184.85,184.84,64.69475171]
[1753737136184,0.88,184.85,184.84,20.72034418]
[1753737136393,0.88,184.85,184.84,64.41042857]
[1753737136565,0.88,184.85,184.84,59.54135261]
[1753737139495,0.88,184.85,184.84,3.93566021]
[1753737139699,0.88,184.85,184.84,42.21566021]
[1753737139906,0.88,184.85,184.84,3.93566021]
[1753737140075,6.28979172,184.85,184.84,42.21566021]
[1753737140677,7.83459172,184.85,184.84,3.21566021]
[1753737140901,11.88861849,184.85,184.84,2.49566021]
[1753737141924,15.53587818,184.85,184.84,2.49566021]
[1753737143495,10.12608646,184.85,184.84,2.49566021]
[1753737143694,0.2,184.85,184.84,58.27034418]
[1753737143884,0.2,184.85,184.84,57.56034418]
[1753737144584,0.2,184.85,184.84,2.49566021]
[1753737144907,6.28979172,184.85,184.84,2.49566021]
[1753737145106,10.33931185,184.85,184.84,2.49566021]
[1753737145491,13.98308481,184.85,184.84,2.49566021]
[1753737146103,13.98308481,184.85,184.84,0.06]
[1753737146992,15.86880795,184.85,184.84,1e-08]
[1753737147189,19.91729759,184.85,184.84,1e-08]
[1753737147418,19.91729759,184.85,184.84,2.43566022]
[1753737147709,15.86880795,184.85,184.84,2.43566022]
[1753737147921,15.58448481,184.85,184.84,2.43566022]
[1753737148987,7.89329309,184.85,184.84,2.43566022]
[1753737149190,0.2,184.85,184.84,58.23034419]
[1753737149470,0.2,184.85,184.84,57.52034419]
[1753737150496,0.88,184.85,184.84,40.73566022]
[1753737151006,6.28979172,184.85,184.84,40.73566022]
[1753737151411,6.28979172,184.85,184.84,2.43566022]
[1753737155041,5.60979172,184.85,184.84,2.43566022]
[1753737157146,0.2,184.85,184.84,19.89034419]
[1753737158044,0.2,184.85,184.84,2.43566022]
[1753737160547,0.2,184.85,184.84,40.73566022]
[1753737161119,0.2,184.85,184.84,57.52034419]
[1753737161314,0.2,184.85,184.84,58.19034419]
[1753737163221,0.2,184.85,184.84,40.73566022]
[1753737164046,0.2,184.85,184.84,58.19034419]
[1753737171984,0.2,184.85,184.84,63.60042858]
[1753737172251,0.2,184.85,184.84,58.47466733]
[1753737172452,0.2,184.85,184.84,59.01567576]
[1753737175945,0.2,184.85,184.84,57.50034419]
[1753737176859,6.31979172,184.85,184.84,40.71566022]
[1753737178539,0.2,184.85,184.84,40.71566022]
[1753737180646,0.2,184.85,184.84,57.50034419]
[1753737180854,0.2,184.85,184.84,58.17034419]
[1753737182249,0.2,184.85,184.84,2.43566022]
[1753737182563,9.93791461,184.85,184.84,2.43566022]
[1753737182737,13.98823182,184.85,184.84,2.43566022]
[1753737183652,18.03928273,184.85,184.84,1e-08]
[1753737183967,18.03928273,184.85,184.84,2.43566022]
[1753737184366,18.03928273,184.85,184.84,1e-08]
[1753737184538,18.03928273,184.85,184.84,2.43566022]
[1753737185169,18.03928273,184.85,184.84,1e-08]
[1753737185343,13.98837203,184.85,184.84,1e-08]
[1753737185537,18.03882945,184.85,184.84,2.43566022]
[1753737187239,18.03882945,184.85,184.84,1e-08]
[1753737187858,18.03882945,184.85,184.84,2.43566022]
[1753737188751,18.03730459,184.85,184.84,2.43566022]
[1753737189155,18.04252093,184.85,184.84,2.43566022]
[1753737189869,11.94272921,184.85,184.84,2.43566022]
[1753737190364,7.89227179,184.85,184.84,2.43566022]
[1753737190541,4.24893256,184.85,184.84,2.43566022]
[1753737196047,0.2,184.85,184.84,3.15566022]
[1753737196376,0.2,184.85,184.84,19.94034419]
[1753737200073,0.2,184.85,184.84,2.43566022]
[1753737200294,6.29979172,184.85,184.84,2.43566022]
[1753737201151,18.04074141,184.85,184.84,2.43566022]
[1753737203881,24.23281101,184.85,184.84,1e-08]
[1753737206051,62.81713415,184.85,184.84,1e-08]
[1753737208779,67.80608154,184.85,184.84,1e-08]
[1753737208950,62.9675888,184.85,184.84,1e-08]
[1753737209152,61.3296888,184.85,184.84,1e-08]
[1753737209554,60.6396888,184.85,184.84,1e-08]
[1753737210689,61.3296888,184.85,184.84,1e-08]
[1753737211880,26.28432314,184.82,184.76,0.06]
[1753737212078,4.98894739,184.77,184.76,0.06]
[1753737212285,12.67223597,184.77,184.76,0.06]
[1753737212457,13.35223597,184.77,184.76,0.06]
[1753737212657,13.63655911,184.77,184.76,1e-08]
[1753737213063,17.68059496,184.77,184.76,1e-08]
[1753737213274,18.6255065,184.77,184.76,1e-08]
[1753737213469,22.66754917,184.77,184.76,1e-08]
[1753737213792,28.07968317,184.77,184.76,1e-08]
[1753737214280,24.0376405,184.77,184.76,1e-08]
[1753737214809,22.19879833,184.77,184.76,1e-08]
[1753737215380,26.46146181,184.77,184.76,1e-08]
[1753737216086,21.23447519,184.77,184.76,1e-08]
[1753737216260,59.53447519,184.77,184.76,1e-08]
[1753737218164,21.23447519,184.77,184.76,1e-08]
[1753737218784,17.19066742,184.77,184.76,1e-08]
[1753737219365,21.22620466,184.77,184.76,1e-08]
[1753737219666,21.25620466,184.77,184.76,1e-08]
[1753737220289,17.22066742,184.77,184.76,1e-08]
[1753737220496,21.2565593,184.77,184.76,1e-08]
[1753737222687,59.5565593,184.77,184.76,0.71000001]
[1753737222905,21.2565593,184.77,184.76,0.71000001]
[1753737223602,9.47802588,184.77,184.76,0.71000001]
[1753737223801,5.442134,184.77,184.76,0.71000001]
[1753737224401,0.03,184.77,184.76,8.84905262]
[1753737225304,0.03,184.77,184.76,0.71000001]
[1753737227400,0.03,184.77,184.76,1e-08]
[1753737228599,0.03,184.77,184.76,0.71000001]
[1753737229012,0.03,184.77,184.76,8.84905262]
[1753737232531,0.03,184.77,184.76,0.71000001]
[1753737232830,0.03,184.77,184.76,1e-08]
[1753737233237,34.84905261,184.77,184.76,1e-08]
[1753737233409,38.48123149,184.77,184.76,1e-08]
[1753737234193,82.19336549,184.77,184.76,1e-08]
[1753737234805,79.0477596,184.77,184.76,1e-08]
[1753737235407,79.33208274,184.77,184.76,1e-08]
[1753737236689,84.32552946,184.77,184.76,1e-08]
[1753737237090,88.36269353,184.77,184.76,1e-08]
[1753737237320,0.28432314,184.76,184.72,1e-08]
[1753737237619,31.27776986,184.73,184.72,1e-08]
[1753737237820,73.20994874,184.73,184.72,1e-08]
[1753737237998,73.88994874,184.73,184.72,1e-08]
[1753737238189,73.20994874,184.73,184.72,1e-08]
[1753737238391,73.34548478,184.73,184.72,1e-08]
[1753737238998,81.48389026,184.73,184.72,1e-08]
[1753737240023,84.1814778,184.73,184.72,1e-08]
[1753737240223,45.8814778,184.73,184.72,1e-08]
[1753737240525,46.56184969,184.73,184.72,1e-08]
[1753737240697,84.18184969,184.73,184.72,1e-08]
[1753737241089,80.54929892,184.73,184.72,1e-08]
[1753737241291,72.41089344,184.73,184.72,1e-08]
[1753737241598,80.54929892,184.73,184.72,1e-08]
[1753737242193,80.83362206,184.73,184.72,1e-08]
[1753737242394,85.15758181,184.73,184.72,1e-08]
[1753737243307,46.85758181,184.73,184.72,1e-08]
[1753737243517,85.15758181,184.73,184.72,1e-08]
[1753737245202,84.46758181,184.73,184.72,1e-08]
[1753737245517,85.15758181,184.73,184.72,1e-08]
[1753737245711,37.74485319,184.73,184.72,0.66000001]
[1753737246694,9.04726565,184.73,184.72,0.66000001]
[1753737247143,5.4133059,184.73,184.72,0.66000001]
[1753737250420,3.63395975,184.74,184.72,8.79840549]
[1753737250629,3.63395975,184.76,184.73,8.79840548]
[1753737250815,0.03,184.77,184.75,8.13840548]
[1753737251021,6.43953855,184.77,184.76,0.66]
[1753737251217,3.66395975,184.77,184.76,0.66]
[1753737251720,0.03,184.77,184.76,0.66]
[1753737252099,5.4422019,184.77,184.76,0.66]
[1753737252508,0.03,184.77,184.76,8.79840548]
[1753737253306,0.03,184.77,184.76,0.66]
[1753737253512,0.03,184.77,184.75,8.13840548]
[1753737253729,0.03,184.77,184.75,8.79840548]
[1753737253909,0.03,184.77,184.76,0.66]
[1753737254410,0.03,184.77,184.76,8.79840548]
[1753737260352,0.03,184.77,184.76,25.58308945]
[1753737260828,0.03,184.77,184.76,22.43217657]
[1753737262955,0.03,184.77,184.76,22.49217657]
[1753737264449,0.03,184.77,184.76,34.09466917]
[1753737264858,0.03,184.77,184.76,34.63591186]
[1753737265237,0.03,184.77,184.76,40.04833879]
[1753737266159,0.03,184.77,184.76,34.63591186]
[1753737267373,0.03,184.77,184.76,29.10717657]
[1753737268065,0.03,184.77,184.76,40.04833879]
[1753737268271,0.03,184.81,184.76,40.04833879]
[1753737268272,0.03,184.81,184.8,4.9874926]
[1753737268637,0.03,184.81,184.8,5.6474926]
[1753737270251,0.03,184.81,184.8,22.43217657]
[1753737270570,0.03,184.81,184.8,5.6474926]
[1753737271148,0.03,184.81,184.8,4.9874926]
[1753737273471,0.72,184.81,184.79,43.2674926]
[1753737273980,0.03,184.81,184.8,4.9874926]
[1753737275454,0.03,184.81,184.79,4.9874926]
[1753737275654,0.72,184.81,184.79,4.9874926]
[1753737276873,0.03,184.81,184.8,5.6874926]
[1753737277855,0.03,184.81,184.79,4.9874926]
[1753737277856,0.72,184.81,184.79,4.9874926]
[1753737278044,0.03,184.81,184.79,4.9874926]
[1753737278250,0.03,184.81,184.8,5.6874926]
[1753737278453,0.03,184.81,184.8,22.47217657]
[1753737278781,0.03,184.81,184.8,17.48468397]
[1753737278956,0.03,184.81,184.8,22.47217657]
[1753737280072,0.03,184.81,184.8,5.6874926]
[1753737280374,0.03,184.81,184.8,4.9874926]
[1753737281075,0.03,184.81,184.79,4.9874926]
[1753737281569,0.03,184.81,184.8,4.9874926]
[1753737283080,0.03,184.81,184.76,60.09217657]
[1753737283081,0.72,184.81,184.76,60.09217657]
[1753737283276,0.69,184.8,184.76,60.09217657]
[1753737283478,0.69,184.8,184.76,60.79217657]
[1753737284181,0.03,184.81,184.77,5.6874926]
[1753737284354,0.03,184.81,184.79,4.9874926]
[1753737285261,0.69,184.8,184.77,0.06]
[1753737285583,0.03,184.81,184.79,4.9874926]
[1753737285767,0.03,184.81,184.8,4.9874926]
[1753737286468,0.03,184.81,184.79,4.9874926]
[1753737286775,0.03,184.81,184.8,4.9874926]
[1753737286982,0.03,184.81,184.8,5.6874926]
[1753737287851,0.03,184.81,184.8,22.47217657]
[1753737288992,0.03,184.81,184.8,60.73217657]
[1753737290853,0.03,184.81,184.79,38.26]
[1753737291058,6.13096261,184.81,184.79,38.26]
[1753737291270,5.44096261,184.81,184.79,38.26]
[1753737293090,5.44096261,184.81,184.78,4.9874926]
[1753737293498,9.07455167,184.81,184.78,4.9874926]
[1753737293692,5.44096261,184.81,184.78,4.9874926]
[1753737293897,4.32358906,184.8,184.77,38.32]
[1753737294192,4.32358906,184.79,184.77,38.32]
[1753737294364,3.63358906,184.78,184.77,38.32]
[1753737294681,3.63358906,184.8,184.77,0.06]
[1753737294877,3.63358906,184.79,184.77,0.06]
[1753737295466,3.63358906,184.78,184.77,0.06]
[1753737295858,13.78287407,184.78,184.77,0.06]
[1753737297554,13.09287407,184.78,184.77,0.06]
[1753737301085,13.107225,184.78,184.77,0.06]
[1753737301291,7.6953839,184.78,184.77,0.76]
[1753737301466,7.6953839,184.78,184.77,5.7474926]
[1753737301667,3.64793999,184.78,184.77,5.7474926]
[1753737301872,3.64793999,184.79,184.77,22.53217657]
[1753737302099,0.03,184.81,184.78,5.6874926]
[1753737302281,8.13530474,184.81,184.8,21.77217657]
[1753737302482,3.67756814,184.81,184.8,17.48468397]
[1753737302788,5.44097108,184.81,184.78,5.6874926]
[1753737302988,5.44097108,184.81,184.77,60.07217657]
[1753737303168,3.64749425,184.8,184.79,4.9874926]
[1753737303383,3.64749425,184.8,184.79,22.47217657]
[1753737303893,3.64749425,184.8,184.78,4.9874926]
[1753737304115,9.05874966,184.8,184.77,43.2874926]
[1753737304289,3.64749425,184.79,184.77,43.9874926]
[1753737306186,5.44096261,184.81,184.77,43.9874926]
[1753737306408,3.64841336,184.8,184.78,4.9874926]
[1753737306596,0.03,184.81,184.79,5.6874926]
[1753737306914,3.64830934,184.8,184.79,5.6874926]
[1753737307492,3.67830934,184.8,184.79,5.6874926]
[1753737307911,7.73172255,184.8,184.79,5.6874926]
[1753737309298,7.73172255,184.8,184.79,4.9874926]
[1753737310591,7.73172255,184.8,184.78,4.9874926]
[1753737310802,3.64830934,184.79,184.78,4.9874926]
[1753737311695,3.64830934,184.79,184.78,5.6874926]
[1753737313216,3.64830934,184.79,184.77,38.3]
[1753737313415,5.44127557,184.8,184.77,43.2874926]
[1753737313619,3.64875327,184.79,184.78,17.48468397]
[1753737313830,0.03,184.81,184.8,43.06900711]
[1753737314136,0.03,184.84,184.83,43.06900711]
[1753737314298,0.03,184.84,184.83,91.82503002]
[1753737314701,0.03,184.89,184.85,0.28432314]
[1753737314858,0.03,184.9,184.89,26.0]
[1753737315144,0.03,184.97,184.92,42.78468397]
[1753737315355,0.03,184.97,184.95,27.04399231]
[1753737315356,4.07661124,184.96,184.95,27.04399231]
[1753737315560,0.1,184.98,184.97,42.78468397]
[1753737315707,0.72,185.05,184.97,86.55280477]
[1753737315914,0.72,185.05,184.98,17.06900711]
[1753737315915,4.04498287,185.04,184.98,17.06900711]
[1753737316228,0.72,185.05,185.0,4.9874926]
[1753737316229,0.72,185.03,185.0,4.9874926]
[1753737316438,0.72,185.05,185.0,16.78468397]
[1753737316743,0.72,185.04,185.01,38.22]
[1753737317031,0.72,185.04,184.98,17.32528295]
[1753737317247,5.40452899,185.03,184.99,38.22]
[1753737317432,0.72,185.02,184.99,38.22]
[1753737317618,0.72,185.01,184.99,38.22]
[1753737317818,0.72,185.0,184.99,38.22]
[1753737318320,8.82812666,185.0,184.93,24.89281063]
[1753737318518,151.71679116,185.06,184.99,8.10812666]
[1753737318716,0.72,185.07,185.04,8.10812666]
[1753737318924,26.72,185.07,185.04,46.32812666]
[1753737319125,0.72,185.06,185.04,46.32812666]
[1753737319436,6.1237107,185.06,185.04,46.32812666]
[1753737319643,0.72,185.06,185.04,46.32812666]
[1753737320041,5.4034957,185.07,185.04,46.32812666]
[1753737320221,6.1234957,185.07,185.04,46.32812666]
[1753737320715,6.1234957,185.07,184.96,6.4233]
[1753737320716,8.10812666,185.05,184.96,6.4233]
[1753737320926,8.10812666,185.03,184.97,46.32812666]
[1753737321141,0.72,185.02,184.97,46.32812666]
[1753737321435,5.40511323,185.01,184.97,46.32812666]
[1753737321622,8.10812666,184.99,184.94,24.89281063]
[1753737321824,0.72,184.98,184.96,38.22]
[1753737322032,5.40511323,185.01,184.96,38.22]
[1753737322033,0.72,184.97,184.96,38.22]
[1753737323215,0.72,184.97,184.92,8.10812666]
[1753737323216,0.72,184.97,184.94,38.24]
[1753737323432,0.72,184.96,184.94,38.24]
[1753737325835,0.72,184.95,184.94,38.24]
[1753737327129,5.4054054,185.0,184.94,38.24]
[1753737327335,8.82812666,184.98,184.94,38.24]
[1753737327529,8.10812666,184.98,184.94,38.24]
[1753737327750,0.72,184.97,184.94,38.24]
[1753737327956,6.12517685,185.01,184.96,8.10812666]
[1753737328119,8.10812666,184.98,184.94,38.24]
[1753737328322,8.82812666,184.97,184.94,38.2]
[1753737328546,0.72,184.96,184.94,38.2]
[1753737329048,8.82812666,184.95,184.92,38.22]
[1753737329247,8.10812666,184.95,184.92,38.22]
[1753737329427,0.72,184.94,184.92,38.22]
[1753737329826,6.12745146,184.93,184.88,8.10812666]
[1753737330048,6.12745146,184.93,184.86,8.16812666]
[1753737330049,0.72,184.92,184.86,8.16812666]
[1753737330244,5.40745146,184.93,184.88,8.10812666]
[1753737330446,8.10812666,184.91,184.86,38.3]
[1753737330633,0.72,184.9,184.86,46.40812666]
[1753737330948,6.12745146,184.93,184.89,8.10812666]
[1753737331147,6.12745146,184.93,184.89,46.38812666]
[1753737331460,8.10812666,184.95,184.91,8.10812666]
[1753737331461,5.40720312,184.94,184.91,8.10812666]
[1753737332340,6.12720312,184.94,184.91,8.10812666]
[1753737332542,6.12720312,184.94,184.89,46.38812666]
[1753737332943,5.40720312,184.94,184.91,8.10812666]
[1753737333139,6.12720312,184.94,184.9,8.10812666]
[1753737333353,0.72,184.93,184.89,46.38812666]
[1753737333563,13.51532978,184.94,184.88,8.10812666]
[1753737333856,8.10812666,184.91,184.86,38.34]
[1753737334030,8.10812666,184.92,184.86,46.44812666]
[1753737334230,18.92510081,184.94,184.86,46.44812666]
[1753737334231,0.72,184.9,184.86,38.34]
[1753737334674,0.72,184.89,184.86,38.34]
[1753737334956,5.40858135,184.9,184.86,46.44812666]
[1753737335135,6.12810124,184.91,184.86,46.44812666]
[1753737335459,5.40810124,184.91,184.86,46.44812666]
[1753737335637,0.72,184.9,184.86,46.44812666]
[1753737335838,5.40776691,184.92,184.88,8.10812666]
[1753737336561,6.12776691,184.92,184.88,8.10812666]
[1753737336754,5.40776691,184.92,184.89,8.10812666]
[1753737337055,5.40776691,184.92,184.89,46.38812666]
[1753737337741,149.0,184.93,184.91,8.10812666]
[1753737337944,26.0,184.95,184.91,8.10812666]
[1753737338335,26.72,184.95,184.92,38.26]
[1753737338672,0.72,184.94,184.92,38.26]
[1753737338838,0.72,184.93,184.92,38.26]
[1753737339034,5.40723742,184.94,184.92,38.26]
[1753737339543,0.72,184.93,184.92,38.26]
[1753737340965,6.12745146,184.93,184.92,38.26]
[1753737341339,6.12745146,184.93,184.86,0.06]
[1753737341340,26.0,184.9,184.86,0.06]
[1753737341540,8.10812666,184.87,184.86,0.06]
[1753737341942,8.82812666,184.87,184.86,0.06]
[1753737342451,12.83633744,184.87,184.85,0.06]
[1753737342773,13.5187965,184.82,184.81,0.06]
[1753737343444,14.2387965,184.82,184.81,0.06]
[1753737344872,14.2387965,184.82,184.77,0.06]
[1753737344873,5.41125541,184.8,184.77,0.06]
[1753737345049,8.10812666,184.78,184.77,0.06]
[1753737345665,8.82812666,184.78,184.77,0.06]
[1753737346552,8.10812666,184.79,184.77,0.06]
[1753737346758,8.82812666,184.79,184.77,0.06]
[1753737346969,5.4118411,184.78,184.77,0.06]
[1753737347990,14.23970477,184.79,184.77,0.06]
[1753737348282,5.41157811,184.79,184.77,0.06]
[1753737349567,183.10812666,184.81,184.77,0.06]
[1753737349769,38.34,184.83,184.78,8.10812666]
[1753737349770,43.75043769,184.83,184.78,8.10812666]
[1753737350075,44.47043769,184.83,184.78,8.10812666]
[1753737350272,6.13043769,184.83,184.78,8.10812666]
[1753737350482,6.13043769,184.83,184.79,8.10812666]
[1753737350843,0.72,184.82,184.79,8.10812666]
[1753737351050,0.72,184.82,184.78,8.10812666]
[1753737351276,4.00755489,184.81,184.78,8.10812666]
[1753737351586,0.72,184.8,184.77,0.06]
[1753737351881,8.82812666,184.8,184.77,0.06]
[1753737352093,8.10812666,184.8,184.77,0.06]
[1753737352248,0.72,184.79,184.77,0.06]
[1753737354276,6.13173623,184.79,184.77,0.06]
[1753737354484,5.41173623,184.79,184.77,0.06]
[1753737354678,6.13173623,184.79,184.77,0.06]
[1753737354857,0.72,184.78,184.77,0.06]
[1753737355165,5.41173623,184.79,184.77,0.06]
[1753737355374,5.41131217,184.8,184.77,0.06]
[1753737356487,5.41131217,184.8,184.77,8.16812666]
[1753737356655,5.41131217,184.8,184.77,0.06]
[1753737356962,6.13131217,184.8,184.77,0.06]
[1753737358169,6.13131217,184.8,184.77,8.16812666]
[1753737358373,5.41131217,184.8,184.77,8.16812666]
[1753737359983,5.44096261,184.81,184.77,8.16812666]
[1753737360276,6.16096261,184.81,184.77,8.16812666]
[1753737360864,0.72,184.8,184.77,8.16812666]
[1753737361068,0.68,184.79,184.77,0.06]
[1753737361583,44.96836913,184.81,184.77,0.06]
[1753737361782,8.10812666,184.77,184.73,0.06]
[1753737361958,13.52113954,184.74,184.73,0.06]
[1753737362278,5.41277074,184.75,184.73,0.06]
[1753737362658,8.78812666,184.74,184.73,0.06]
[1753737363000,5.41252275,184.76,184.73,8.16812666]
[1753737363169,5.41252275,184.76,184.73,0.06]
[1753737363484,6.09252275,184.76,184.73,0.06]
[1753737363655,14.20064941,184.76,184.73,0.06]
[1753737364164,8.78812666,184.75,184.73,0.06]
[1753737364871,8.78812666,184.74,184.73,0.06]
[1753737366257,14.20113954,184.74,184.73,0.06]
[1753737367257,18.21261783,184.74,184.73,0.06]
[1753737369183,183.3924498,184.73,184.72,1e-08]
[1753737369375,39.08392809,184.73,184.72,1e-08]
[1753737369580,35.0724498,184.73,184.72,1e-08]
[1753737369873,26.0,184.71,184.7,0.2]
[1753737370078,8.10812666,184.71,184.7,0.2]
[1753737370281,8.78812666,184.71,184.7,0.2]
[1753737371069,18.2148525,184.71,184.7,0.2]
[1753737371674,14.2020187,184.71,184.7,0.2]
[1753737372890,18.21692699,184.71,184.7,0.2]
[1753737373586,154.41367131,184.72,184.7,0.2]
[1753737373971,8.78812666,184.71,184.7,0.2]
[1753737374366,0.68,184.71,184.7,0.2]
[1753737374569,162.52179797,184.72,184.7,0.2]
[1753737374873,4.01630226,184.71,184.7,0.2]
[1753737375387,4.01630226,184.71,184.7,25.22281063]
[1753737375592,0.68,184.77,184.7,25.22281063]
[1753737375593,0.68,184.77,184.71,16.78468397]
[1753737375786,8.02965082,184.76,184.73,8.10812666]
[1753737376087,4.01482541,184.75,184.72,8.10812666]
[1753737376286,4.01482541,184.74,184.72,8.10812666]
[1753737376492,4.01482541,184.73,184.72,8.10812666]
[1753737376691,4.01482541,184.73,184.7,0.2]
[1753737376895,4.01546194,184.72,184.7,0.2]
[1753737377077,0.68,184.73,184.7,0.2]
[1753737377272,4.01537455,184.72,184.7,0.2]
[1753737377787,0.68,184.73,184.7,0.2]
[1753737377788,12.80350121,184.71,184.7,0.2]
[1753737378004,4.01537455,184.71,184.7,0.2]
[1753737378584,12.80350121,184.71,184.7,0.2]
[1753737378783,18.21739325,184.71,184.7,0.2]
[1753737380009,10.10926659,184.71,184.7,0.2]
[1753737380299,18.21739325,184.71,184.7,0.2]
[1753737381604,18.2233468,184.71,184.7,0.2]
[1753737384805,25.87717662,184.71,184.7,0.2]
[1753737385782,26.16149976,184.71,184.7,0.2]
[1753737386718,175.28432314,184.7,184.69,0.06]
[1753737386885,221.60991954,184.7,184.68,1e-08]
[1753737387089,177.85573438,184.69,184.68,1e-08]
[1753737387289,0.28432314,184.68,184.67,1e-08]
[1753737387609,59.08760772,184.68,184.67,1e-08]
[1753737388803,0.28432314,184.66,184.65,1e-08]
[1753737389003,0.28432314,184.66,184.64,1e-08]
[1753737389004,149.0,184.65,184.64,1e-08]
[1753737389313,174.17898355,184.65,184.64,1e-08]
[1753737389807,169.46328458,184.65,184.64,1e-08]
[1753737390010,186.67515792,184.65,184.64,1e-08]
[1753737390220,11.67515792,184.65,184.64,8.23812667]
[1753737390415,11.67515792,184.65,184.64,25.02281064]
[1753737390416,4.0213281,184.65,184.64,25.02281064]